bitfinex/quotes_ETHUSD_20240530
["timestamp","ask_amount","ask_price","bid_price","bid_amount"]
[1717087834342,0.717,3785.1,3784.6,0.05000998]
[1717087834570,0.717,3785.1,3784.5,40.64560763]
[1717087834741,0.717,3785.1,3784.6,0.04996491]
[1717087834941,0.717,3785.1,3784.5,38.0]
[1717087835259,0.717,3785.1,3784.6,0.04996491]
[1717087835661,0.717,3785.1,3784.5,35.0]
[1717087835862,0.717,3785.1,3784.7,0.04990844]
[1717087836062,0.717,3785.1,3784.6,0.04996491]
[1717087836480,0.717,3785.1,3784.4,2.64241]
[1717087836684,0.717,3785.1,3784.7,0.04990844]
[1717087836865,0.717,3785.1,3784.4,2.64241]
[1717087837041,0.717,3785.1,3784.8,0.04985197]
[1717087837383,0.717,3785.1,3784.4,2.64241]
[1717087837555,0.717,3785.1,3784.5,35.0]
[1717087837750,0.717,3785.1,3784.6,0.04996491]
[1717087838085,0.717,3785.1,3784.4,2.64241]
[1717087838381,0.57111669,3785.3,3784.6,2.64228]
[1717087838883,0.57111669,3785.3,3784.7,0.04999268]
[1717087839251,0.57111669,3785.3,3784.8,35.0]
[1717087839645,0.57111669,3785.3,3784.9,0.04987975]
[1717087842654,0.57111669,3785.3,3784.7,35.0]
[1717087842857,0.57111669,3785.3,3785.0,0.04982328]
[1717087843108,0.57111669,3785.3,3784.8,2.64560763]
[1717087843666,0.57111669,3785.3,3784.9,0.04987975]
[1717087844068,0.57111669,3785.3,3784.7,35.0]
[1717087844299,0.57111669,3785.3,3784.8,0.04993621]
[1717087845181,0.717,3785.2,3784.8,0.04993621]
[1717087845596,0.57111669,3785.3,3784.8,0.04993621]
[1717087845768,0.57111669,3785.3,3784.9,2.64560763]
[1717087846100,0.57111669,3785.3,3785.0,0.04974688]
[1717087847012,0.717,3785.5,3785.0,0.04974688]
[1717087847173,1.28811669,3785.5,3785.0,35.04974688]
[1717087847513,1.28811669,3785.5,3785.0,37.69535451]
[1717087847514,0.717,3785.5,3785.0,37.69535451]
[1717087847682,1.28811669,3785.5,3785.0,37.69535451]
[1717087847885,0.57111669,3785.6,3785.0,37.69535451]
[1717087848105,1.28811669,3785.5,3785.0,37.69535451]
[1717087848315,2.64152,3785.7,3785.0,37.69535451]
[1717087848316,0.57111669,3785.6,3785.0,37.69535451]
[1717087848512,0.717,3785.5,3785.0,37.69535451]
[1717087848884,0.717,3785.5,3785.0,2.69535451]
[1717087849078,0.717,3785.5,3785.0,0.04974688]
[1717087849307,0.717,3785.5,3784.7,3.0]
[1717087849514,0.717,3785.5,3784.7,38.0]
[1717087849808,0.717,3785.5,3784.8,0.04976382]
[1717087850008,0.57111669,3785.6,3784.8,0.04976382]
[1717087850220,0.57111669,3785.6,3784.9,0.56920438]
[1717087850383,0.57111669,3785.6,3784.9,35.56920438]
[1717087850588,0.57111669,3785.6,3785.0,0.04966656]
[1717087853327,0.57111669,3785.5,3785.0,0.04966656]
[1717087853491,0.57111669,3785.6,3785.0,2.69527419]
[1717087853823,0.57111669,3785.5,3785.0,2.69527419]
[1717087853996,0.57111669,3785.6,3785.0,0.04966656]
[1717087854198,0.57111669,3785.5,3785.1,35.0]
[1717087854399,0.57111669,3785.6,3785.1,35.0]
[1717087854628,3.35852,3785.7,3785.2,0.04951252]
[1717087854629,0.57111669,3785.5,3785.2,0.04951252]
[1717087854785,0.57111669,3785.6,3785.2,0.04951252]
[1717087854989,0.57111669,3785.5,3785.2,0.04951252]
[1717087855279,0.57111669,3785.6,3785.2,0.04951252]
[1717087855524,0.57111669,3785.5,3785.2,0.04951252]
[1717087855722,0.57111669,3785.6,3785.2,0.04951252]
[1717087855896,1.28811669,3785.5,3785.2,0.04951252]
[1717087856102,1.28811669,3785.5,3785.3,0.04944628]
[1717087856289,0.717,3785.5,3785.3,0.04944628]
[1717087856487,1.28811669,3785.5,3785.0,35.0]
[1717087856726,0.717,3785.5,3785.4,0.04938983]
[1717087857021,1.28811669,3785.5,3785.4,0.04938983]
[1717087857182,1.28811669,3785.5,3785.0,35.0]
[1717087857183,0.717,3785.5,3785.0,35.0]
[1717087857388,1.28811669,3785.5,3785.1,0.04955918]
[1717087857588,0.717,3785.5,3785.1,0.04955918]
[1717087857794,1.28811669,3785.5,3785.1,0.04955918]
[1717087857993,0.717,3785.5,3785.1,0.04955918]
[1717087858318,0.57111669,3785.5,3785.1,0.04955918]
[1717087858490,0.57111669,3785.6,3785.1,0.04955918]
[1717087858689,0.57111669,3785.5,3785.1,0.04955918]
[1717087858881,0.57111669,3785.6,3785.1,0.04955918]
[1717087859086,0.57111669,3785.5,3785.1,0.04955918]
[1717087859310,0.57111669,3785.4,3785.1,0.04955918]
[1717087859511,0.57111669,3785.4,3785.2,2.64560763]
[1717087859717,0.57111669,3785.6,3785.2,2.64560763]
[1717087859895,0.57111669,3785.5,3785.3,0.04943844]
[1717087860099,0.57111669,3785.6,3785.3,0.04943844]
[1717087860307,0.57111669,3785.5,3785.2,2.64560763]
[1717087860626,0.57111669,3785.6,3785.3,0.04943844]
[1717087860940,0.57111669,3785.5,3785.3,0.04943844]
[1717087861157,0.57111669,3785.6,3785.2,2.64560763]
[1717087861290,0.57111669,3785.6,3785.3,0.04943844]
[1717087861722,0.57111669,3785.6,3785.0,35.0]
[1717087861930,0.57111669,3785.5,3785.4,0.04938199]
[1717087862144,0.57111669,3785.6,3785.0,35.0]
[1717087862289,0.57111669,3785.5,3785.4,0.04938199]
[1717087862490,0.57111669,3785.6,3785.4,0.04938199]
[1717087862795,0.57111669,3785.5,3785.0,37.64560763]
[1717087863100,0.57111669,3785.6,3785.0,37.64560763]
[1717087863292,0.57111669,3785.6,3785.1,0.04955135]
[1717087863492,0.57111669,3785.5,3785.1,0.04955135]
[1717087863694,2.64152,3785.7,3785.1,0.04955135]
[1717087863892,0.57109194,3785.6,3785.1,0.04955135]
[1717087864161,0.57109194,3785.5,3785.1,0.04955135]
[1717087864640,0.717,3785.3,3785.1,0.04955135]
[1717087865128,0.717,3785.3,3785.1,35.04955135]
[1717087865290,0.717,3785.3,3785.1,35.0]
[1717087865636,0.717,3785.3,3785.2,0.04947529]
[1717087866452,0.717,3785.3,3784.9,3.0]
[1717087866748,0.717,3785.1,3784.9,38.0]
[1717087866954,0.717,3785.3,3784.9,40.64560763]
[1717087868619,1.28809194,3785.3,3784.9,40.64560763]
[1717087868821,0.717,3785.3,3784.9,40.64560763]
[1717087869049,0.57109194,3785.5,3784.9,40.64560763]
[1717087869263,0.717,3785.3,3784.9,40.64560763]
[1717087869417,0.57109194,3785.6,3785.0,1.46961607]
[1717087869728,0.717,3785.3,3785.0,1.46961607]
[1717087870114,0.717,3785.3,3785.1,35.0]
[1717087870458,1.28810378,3785.3,3785.1,35.0]
[1717087870777,0.717,3785.3,3785.1,35.0]
[1717087871471,1.28810963,3785.3,3785.1,35.0]
[1717087871681,0.717,3785.3,3785.1,35.0]
[1717087872473,0.57110963,3785.3,3785.2,2.64560763]
[1717087872688,1.28810963,3785.3,3785.2,2.64560763]
[1717087872856,0.717,3785.3,3785.2,2.64560763]
[1717087873440,1.28810963,3785.3,3784.9,3.0]
[1717087873654,0.717,3785.3,3784.9,3.0]
[1717087873860,0.717,3785.3,3785.0,35.0]
[1717087874535,1.28810963,3785.3,3785.0,35.0]
[1717087874759,0.717,3785.3,3785.0,35.0]
[1717087874926,0.717,3785.3,3785.1,2.64560763]
[1717087875369,1.28810963,3785.3,3785.1,2.64560763]
[1717087875533,1.28810963,3785.3,3784.9,3.0]
[1717087875743,0.717,3785.3,3784.9,3.0]
[1717087876063,0.717,3785.3,3785.0,35.0]
[1717087876471,1.28810963,3785.3,3785.0,35.0]
[1717087876640,0.717,3785.3,3785.0,35.0]
[1717087876837,0.57110963,3785.2,3785.0,35.0]
[1717087877141,0.717,3785.3,3785.1,2.64560763]
[1717087877343,0.57111019,3785.2,3785.1,2.64560763]
[1717087878135,0.57111019,3785.2,3785.1,2.69519618]
[1717087879056,0.57111019,3785.2,3785.1,0.04958855]
[1717087879445,0.717,3785.3,3785.1,35.0]
[1717087879644,0.717,3785.3,3785.1,35.04958855]
[1717087880165,1.28811019,3785.3,3785.1,35.04958855]
[1717087880349,0.717,3785.3,3785.1,35.04958855]
[1717087881389,1.28811019,3785.3,3785.1,35.04958855]
[1717087881576,0.717,3785.3,3785.2,2.64560763]
[1717087881982,0.717,3785.3,3785.2,2.69513973]
[1717087882663,0.717,3785.3,3785.2,0.0495321]
[1717087882870,0.717,3785.3,3785.2,35.0495321]
[1717087883071,0.717,3785.3,3785.2,35.0]
[1717087883254,0.717,3785.3,3785.2,35.0495321]
[1717087883457,0.717,3785.3,3785.2,0.0495321]
[1717087883867,0.717,3785.3,3784.9,3.0]
[1717087884101,0.717,3785.3,3785.2,0.0495321]
[1717087884318,0.717,3785.3,3785.0,0.564208]
[1717087884469,0.717,3785.3,3785.2,0.0495321]
[1717087884663,0.57111019,3785.6,3785.1,35.04958855]
[1717087884970,0.717,3785.4,3785.1,35.04958855]
[1717087886583,1.28811019,3785.4,3785.1,35.04958855]
[1717087886773,0.717,3785.4,3785.1,35.04958855]
[1717087887209,1.28811019,3785.4,3785.1,35.04958855]
[1717087887423,0.717,3785.4,3785.1,35.04958855]
[1717087887910,1.28811019,3785.4,3785.1,35.04958855]
[1717087888207,0.717,3785.4,3785.1,37.69519618]
[1717087888611,1.28811019,3785.4,3785.1,37.69519618]
[1717087888788,0.717,3785.4,3785.1,37.69519618]
[1717087889185,1.28811019,3785.4,3785.1,37.69519618]
[1717087889390,0.57111019,3785.3,3785.1,37.69519618]
[1717087889587,0.57111019,3785.6,3785.1,37.69519618]
[1717087889830,0.57111019,3785.5,3785.1,37.69519618]
[1717087889974,0.57111019,3785.5,3785.2,1.46970707]
[1717087889975,0.57111019,3785.4,3785.2,1.46970707]
[1717087890175,0.717,3785.5,3785.2,1.46970707]
[1717087890413,0.717,3785.5,3785.3,0.04948151]
[1717087890617,0.717,3785.5,3785.3,35.0]
[1717087890929,0.717,3785.5,3785.4,0.04942506]
[1717087891135,1.28811019,3785.5,3785.4,0.04942506]
[1717087891337,0.717,3785.5,3785.4,0.04942506]
[1717087891536,1.28811019,3785.5,3785.4,0.04942506]
[1717087892043,0.717,3785.5,3785.4,0.04942506]
[1717087892336,1.28811019,3785.5,3785.4,0.04942506]
[1717087892496,0.717,3785.5,3785.4,0.04942506]
[1717087893026,1.28809618,3785.5,3785.4,0.04942506]
[1717087893389,0.57109618,3785.6,3785.4,0.04942506]
[1717087893616,0.717,3785.5,3785.4,0.04942506]
[1717087893813,0.57109618,3785.6,3784.9,3.0]
[1717087894040,0.57109618,3785.6,3785.3,2.64177]
[1717087894227,2.64071,3786.9,3785.3,2.64177]
[1717087894228,0.57109618,3786.8,3785.3,2.64177]
[1717087894396,2.64071,3786.9,3785.4,0.04942506]
[1717087894397,2.64116,3786.3,3785.4,0.04942506]
[1717087894723,0.717,3786.1,3785.4,0.04942506]
[1717087895029,1.28809618,3786.1,3785.5,35.99911951]
[1717087895230,0.717,3785.9,3785.6,0.04911435]
[1717087895786,0.717,3785.7,3785.6,0.04911435]
[1717087896433,0.717,3785.7,3785.3,7.3]
[1717087896665,0.717,3785.7,3785.4,0.04922724]
[1717087897254,0.717,3785.5,3785.4,0.04922724]
[1717087899963,2.64174,3785.4,3784.7,3.0]
[1717087900170,0.717,3785.3,3784.7,4.294228]
[1717087900501,1.28809618,3785.3,3784.8,0.04956598]
[1717087901764,0.717,3785.3,3784.8,0.04956598]
[1717087901960,1.288097,3785.3,3784.8,0.04956598]
[1717087902377,2.64188,3785.2,3784.8,0.04956598]
[1717087902568,1.288097,3785.1,3784.8,0.04956598]
[1717087903480,0.717,3784.9,3784.8,0.04956598]
[1717087903679,2.64214,3784.8,3784.6,7.3]
[1717087903881,1.288097,3784.7,3784.6,7.3]
[1717087905261,1.288097,3784.7,3783.5,7.3]
[1717087905453,0.717,3783.9,3783.5,7.3]
[1717087905658,0.717,3783.9,3783.1,12.21]
[1717087905904,0.717,3783.9,3783.2,2.287033]
[1717087906595,2.64267,3784.1,3783.3,2.64319]
[1717087906893,3.35967,3784.1,3783.4,3.0]
[1717087908354,3.35967,3784.1,3783.5,0.05103505]
[1717087910202,3.35967,3784.1,3783.5,0.84916086]
[1717087911713,0.717,3783.9,3783.5,0.05103505]
[1717087912414,0.717,3783.9,3783.1,3.0]
[1717087912614,0.717,3783.9,3783.6,0.05097659]
[1717087912801,0.717,3783.9,3783.7,0.05092009]
[1717087913228,0.717,3783.9,3783.8,0.05086359]
[1717087913622,2.64267,3784.1,3783.1,3.0]
[1717087913816,0.717,3783.9,3783.2,1.366041]
[1717087914330,0.717,3783.9,3783.3,0.05114611]
[1717087914705,0.717,3783.9,3783.4,0.0510896]
[1717087915128,0.717,3783.9,3783.2,1.366041]
[1717087915651,0.717,3783.9,3783.3,0.05114611]
[1717087915814,0.717,3783.9,3783.3,1.22286482]
[1717087916013,0.717,3783.9,3783.3,0.05114611]
[1717087916260,0.717,3783.9,3783.1,3.0]
[1717087916458,0.717,3783.9,3783.2,0.05120262]
[1717087916662,2.64267,3784.1,3783.2,0.05120262]
[1717087916952,3.35967,3784.1,3783.2,0.05120262]
[1717087917157,3.35967,3784.1,3783.2,1.42236388]
[1717087920618,2.64285,3783.8,3783.2,1.42236388]
[1717087920933,0.717,3783.7,3783.2,1.42236388]
[1717087921540,2.64285,3783.8,3783.2,1.42236388]
[1717087921713,3.35985,3783.8,3783.2,0.05120262]
[1717087922835,2.64285,3783.8,3783.2,0.05120262]
[1717087923468,3.35985,3783.8,3783.2,0.05120262]
[1717087923761,0.717,3783.6,3783.2,0.05120262]
[1717087923946,3.35985,3783.8,3783.2,0.05120262]
[1717087924282,3.695835,3783.8,3783.2,0.05120262]
[1717087924616,2.64306,3783.5,3783.2,0.05120262]
[1717087924947,0.717,3783.3,3783.0,7.3]
[1717087925465,2.64326,3783.2,3783.0,7.3]
[1717087926245,2.64341,3783.0,3782.4,13.22888637]
[1717087926445,0.335985,3783.8,3782.2,7.3]
[1717087926446,0.717,3782.5,3782.2,7.3]
[1717087928053,2.64327,3783.2,3782.4,0.717]
[1717087928253,2.643,3783.6,3782.9,0.717]
[1717087928469,2.64273,3784.0,3783.1,0.717]
[1717087929369,2.64289,3783.8,3782.9,3.0]
[1717087929581,5.42567,3785.5,3785.2,8.06e-06]
[1717087929794,6.00058,3785.3,3785.2,8.06e-06]
[1717087930113,2.6427,3784.0,3783.9,7.3]
[1717087930305,2.64296,3783.7,3783.0,7.3]
[1717087930590,2.64296,3783.7,3782.9,3.0]
[1717087930591,0.717,3783.2,3782.9,3.0]
[1717087930788,0.717,3783.2,3782.7,3.0]
[1717087932303,0.717,3783.2,3782.6,19.51]
[1717087932304,0.717,3783.0,3782.6,19.51]
[1717087934690,0.717,3783.0,3782.3,3.0]
[1717087934893,0.717,3783.0,3782.2,5.64394]
[1717087935090,0.717,3783.0,3782.3,1.366094]
[1717087935323,3.3603,3783.2,3782.3,1.366094]
[1717087935694,2.6433,3783.2,3782.3,1.366094]
[1717087936019,3.3603,3783.2,3782.3,1.366094]
[1717087936875,2.6433,3783.2,3782.4,2.6438]
[1717087937077,2.64302,3783.6,3782.6,3.36064]
[1717087937278,2.64302,3783.6,3782.5,3.7726894]
[1717087937279,2.64207,3784.9,3782.9,2.64345]
[1717087937583,2.64207,3784.9,3783.2,7.3]
[1717087937584,0.717,3784.1,3783.2,7.3]
[1717087937888,0.57141575,3784.8,3783.2,8.366045]
[1717087937889,0.57141575,3784.7,3783.2,8.366045]
[1717087938093,0.717,3783.9,3783.2,8.366045]
[1717087938332,0.717,3783.9,3783.3,0.0513402]
[1717087938478,2.6427,3784.1,3783.3,0.0513402]
[1717087938673,0.34776928,3784.7,3783.4,1.10606152]
[1717087938975,2.64183,3785.3,3783.5,0.05122719]
[1717087938976,0.717,3784.2,3783.5,0.05122719]
[1717087939182,2.64241,3784.5,3783.5,0.05122719]
[1717087939183,0.57133539,3784.4,3783.5,0.05122719]
[1717087939381,0.717,3784.3,3783.5,0.05122719]
[1717087939572,0.57133539,3784.4,3783.6,0.75173687]
[1717087939985,0.717,3784.4,3783.7,0.05099066]
[1717087940275,2.64241,3784.5,3783.7,0.05099066]
[1717087941859,1.721,3785.1,3783.7,0.05099066]
[1717087941860,2.6421,3784.9,3783.7,2.69387066]
[1717087942058,2.6421,3784.9,3783.8,0.64456075]
[1717087942059,0.57127471,3784.8,3783.8,0.64456075]
[1717087942264,0.57127471,3784.8,3783.9,2.69342381]
[1717087942434,0.57127471,3784.8,3784.0,3.0]
[1717087942639,2.6421,3784.9,3784.1,2.64259]
[1717087942847,2.6421,3784.9,3784.2,3.56932638]
[1717087943171,2.6421,3784.9,3784.3,0.05044591]
[1717087943474,2.64183,3785.3,3784.3,0.05044591]
[1717087943691,0.57117493,3785.2,3784.3,0.05044591]
[1717087944320,2.64183,3785.3,3784.3,0.05044591]
[1717087944512,2.64183,3785.3,3784.3,0.67668214]
[1717087945165,0.57116826,3785.2,3784.3,0.67668214]
[1717087945368,2.64196,3785.1,3784.3,0.05044591]
[1717087945526,4.36296,3785.1,3784.3,0.05044591]
[1717087946882,2.64212,3784.9,3784.3,0.05044591]
[1717087947254,2.64156,3785.7,3784.4,2.6424]
[1717087947458,0.57120389,3785.6,3784.5,3.05033295]
[1717087947663,0.57120389,3785.6,3784.6,3.30503329]
[1717087947866,2.64156,3785.7,3784.7,0.05013182]
[1717087948307,2.64156,3785.7,3784.1,3.0]
[1717087948464,2.64156,3785.7,3784.8,0.05007535]
[1717087948668,2.64156,3785.7,3784.1,3.0]
[1717087948881,2.64156,3785.7,3784.2,1.0804142]
[1717087949093,2.64156,3785.7,3784.6,2.64226]
[1717087949308,2.64156,3785.7,3784.7,3.0]
[1717087949600,2.64156,3785.7,3784.7,3.05013182]
[1717087952003,0.55,3785.6,3784.7,3.05013182]
[1717087952203,0.55,3785.6,3784.8,0.56923918]
[1717087952504,0.55,3785.6,3784.9,0.05001889]
[1717087953022,2.64166,3785.5,3784.9,0.05001889]
[1717087953221,0.55,3785.4,3784.9,0.05001889]
[1717087953703,0.55,3785.4,3785.0,0.04996243]
[1717087954090,0.55,3785.4,3784.7,3.0]
[1717087954295,0.55,3785.4,3785.1,0.04990597]
[1717087954609,2.64166,3785.5,3784.8,1.294226]
[1717087954784,2.64166,3785.5,3785.2,0.04984951]
[1717087955111,2.64166,3785.5,3785.3,0.04979306]
[1717087955470,2.64166,3785.5,3784.8,1.294226]
[1717087955685,2.64166,3785.5,3784.9,0.74366749]
[1717087955979,2.64166,3785.5,3785.0,35.0]
[1717087956178,2.64139,3785.9,3785.1,0.05283399]
[1717087956508,2.64139,3785.9,3785.1,5.69182597]
[1717087956803,2.64139,3785.9,3785.2,0.63854746]
[1717087957015,2.64139,3785.9,3785.3,35.0]
[1717087957314,2.64139,3785.9,3785.3,35.04979306]
[1717087960808,2.64155,3785.7,3785.3,0.04979306]
[1717087960975,0.55,3785.6,3785.3,0.04979306]
[1717087961308,0.55,3785.6,3785.4,0.04951128]
[1717087961509,0.55,3785.6,3785.0,3.0]
[1717087961699,0.55,3785.6,3785.5,0.04931573]
[1717087961875,0.55,3785.6,3785.0,3.0]
[1717087962075,0.55,3785.6,3785.1,0.04954154]
[1717087962615,0.55,3785.6,3785.1,35.04954154]
[1717087963500,2.64155,3785.7,3785.1,35.04954154]
[1717087970523,2.64186,3785.2,3785.1,0.04954154]
[1717087970829,3.456046,3785.2,3785.1,0.04954154]
[1717087971124,3.456046,3785.2,3784.3,47.21]
[1717087971125,2.64215,3784.8,3784.3,47.21]
[1717087971630,2.64215,3784.8,3784.6,0.04825715]
[1717087971929,2.64215,3784.8,3784.3,47.21]
[1717087972099,2.64215,3784.8,3784.7,0.04820068]
[1717087972299,3.21337213,3784.8,3784.6,0.04825715]
[1717087972483,2.64191,3785.2,3784.7,0.04820068]
[1717087972688,1.721,3785.4,3784.7,0.04820068]
[1717087972689,0.57121364,3785.1,3784.7,0.04820068]
[1717087972886,0.57121364,3786.3,3784.7,0.04820068]
[1717087973727,0.57121364,3786.3,3784.8,35.0]
[1717087974024,2.64141,3785.9,3784.9,3.0]
[1717087974231,0.57121364,3785.8,3785.0,2.03391507]
[1717087974430,0.57121364,3785.8,3785.0,2.642]
[1717087974732,0.57121364,3785.8,3785.1,35.04812372]
[1717087979456,2.64153,3785.7,3785.1,35.04812372]
[1717087979751,2.64166,3785.5,3785.1,0.04812372]
[1717087980111,2.64166,3785.5,3784.7,3.0]
[1717087980422,0.57109747,3785.4,3785.2,0.04791641]
[1717087980621,0.57109747,3785.4,3784.8,36.294223]
[1717087981146,0.57109747,3785.4,3784.9,0.04808579]
[1717087981466,0.5711001,3785.4,3784.9,0.04808579]
[1717087981824,0.5711001,3785.4,3785.0,35.0]
[1717087982243,0.5711001,3785.4,3785.1,0.04797287]
[1717087982644,0.57110141,3785.4,3785.1,0.04797287]
[1717087983238,0.57110141,3785.4,3784.8,1.294223]
[1717087983573,0.57110141,3785.4,3785.2,35.0]
[1717087984064,0.57110141,3785.4,3785.3,0.04785996]
[1717087984366,0.57110141,3785.4,3785.2,35.0]
[1717087984569,0.57110141,3785.4,3785.3,0.04785996]
[1717087984927,2.64166,3785.5,3785.2,35.0]
[1717087985128,2.64166,3785.5,3785.3,0.04785996]
[1717087985328,0.57110112,3785.4,3785.3,0.04785996]
[1717087985640,2.64112,3786.3,3785.3,5.28739763]
[1717087985823,2.64112,3786.3,3785.3,5.33527326]
[1717087985824,0.57106479,3786.2,3785.3,5.33527326]
[1717087986670,0.57106479,3786.2,3785.4,3.0]
[1717087987074,0.57106479,3786.2,3785.5,0.0477784]
[1717087988661,0.57106479,3786.2,3785.6,35.0]
[1717087988841,0.57106479,3786.2,3785.7,0.04759501]
[1717087989347,0.57106479,3786.2,3785.8,0.04753857]
[1717087989867,0.57106479,3786.2,3785.6,37.64560763]
[1717087990041,0.57106479,3786.2,3785.9,0.04748213]
[1717087990249,0.57106479,3786.2,3785.6,37.64560763]
[1717087990453,0.57106479,3786.2,3786.0,0.0474257]
[1717087990653,0.57106479,3786.2,3785.7,1.34026977]
[1717087990866,0.57106479,3786.2,3785.8,0.04752094]
[1717087993363,1.721,3787.0,3785.8,0.04752094]
[1717087993364,2.64087,3786.7,3785.8,0.04752094]
[1717087993570,0.57106479,3786.6,3785.9,0.6936453]
[1717087993878,0.57106479,3786.6,3786.0,0.04739437]
[1717087994264,2.64097,3786.5,3786.0,0.04739437]
[1717087994772,0.57097938,3786.4,3786.0,0.04739437]
[1717087994976,0.57097938,3786.4,3786.0,35.04739437]
[1717087995589,2.64111,3786.3,3786.0,35.04739437]
[1717087996294,0.57100671,3786.2,3786.0,35.04739437]
[1717087997892,2.64124,3786.1,3786.0,0.04739437]
[1717087998064,3.21224081,3786.1,3785.2,3.0]
[1717087998267,4.36174,3786.9,3785.2,3.0]
[1717087998268,2.64145,3785.8,3785.3,0.04765432]
[1717087998459,2.64145,3785.8,3785.2,40.215194]
[1717087998460,2.64145,3785.8,3785.2,38.0]
[1717087998791,2.64162,3785.6,3785.3,0.04765432]
[1717087999263,2.64162,3785.6,3784.8,3.0]
[1717087999465,2.64162,3785.6,3784.9,1.294221]
[1717087999773,2.64182,3785.3,3785.0,35.04630298]
[1717088001402,2.64096,3786.5,3785.0,35.04630298]
[1717088001403,2.64155,3785.7,3785.0,35.04630298]
[1717088001552,0.57109693,3785.6,3785.0,35.04630298]
[1717088001754,2.64128,3786.1,3785.0,35.04630298]
[1717088002001,0.57107031,3786.0,3785.1,2.64560763]
[1717088002160,0.57107031,3786.0,3785.1,5.28751763]
[1717088002358,0.57107031,3786.0,3785.2,0.04631933]
[1717088002691,0.57107031,3786.0,3785.2,3.04631933]
[1717088003219,0.57107031,3786.0,3785.3,2.69461712]
[1717088003374,0.57107031,3786.0,3785.4,35.57409365]
[1717088003555,0.57107031,3786.0,3785.4,35.6202609]
[1717088004556,0.57107031,3786.0,3785.5,2.64165]
[1717088004758,0.57107031,3786.4,3785.5,2.64165]
[1717088005068,0.57099531,3786.4,3785.6,0.3721632]
[1717088005260,0.57099531,3786.4,3785.6,35.3721632]
[1717088006452,0.57099531,3786.4,3785.7,2.64151]
[1717088006856,2.64098,3786.5,3785.8,0.04585923]
[1717088007196,2.64098,3786.5,3785.9,35.0]
[1717088007368,2.64098,3786.5,3786.0,2.64560763]
[1717088007575,2.64098,3786.5,3786.0,2.69135399]
[1717088007791,2.64098,3786.5,3786.0,0.04574636]
[1717088008092,2.64098,3786.5,3786.1,35.0]
[1717088008295,2.64098,3786.5,3786.2,0.04563351]
[1717088009087,0.57095155,3786.4,3786.2,0.04563351]
[1717088009677,2.64098,3786.5,3785.7,2.64151]
[1717088009856,2.64098,3786.5,3785.8,0.64262934]
[1717088010058,2.64098,3786.5,3785.9,35.0]
[1717088010483,2.64098,3786.5,3786.0,0.04570916]
[1717088011663,2.64098,3786.5,3785.8,0.59677011]
[1717088012164,2.64098,3786.5,3785.9,35.04576559]
[1717088012386,2.64098,3786.5,3786.0,2.64560763]
[1717088012662,2.64098,3786.5,3786.0,2.69131679]
[1717088012861,2.64098,3786.5,3786.0,0.04570916]
[1717088013104,0.00080885,3787.3,3786.1,3.0]
[1717088013499,0.00080885,3787.3,3786.4,2.641]
[1717088014001,0.00080885,3787.3,3786.5,0.04525476]
[1717088014200,0.00080885,3787.3,3786.6,0.26862548]
[1717088014386,0.00080885,3787.3,3786.6,0.31382383]
[1717088016540,2.64049,3787.2,3786.6,0.04519835]
[1717088016710,0.55,3787.1,3786.6,0.04519835]
[1717088017066,0.55,3787.1,3786.4,2.641]
[1717088017267,0.55,3787.1,3786.7,0.04514194]
[1717088017511,0.55,3787.1,3786.8,0.04508553]
[1717088017672,2.64061,3787.0,3786.1,3.0]
[1717088017872,0.55,3786.9,3786.1,3.0]
[1717088018073,0.55,3786.9,3786.2,0.04549254]
[1717088019274,2.64061,3787.0,3786.2,0.04549254]
[1717088021004,0.55,3786.9,3786.2,0.04549254]
[1717088021181,0.319061,3786.8,3786.2,0.04549254]
[1717088021382,0.55,3786.9,3786.2,0.04549254]
[1717088022580,2.64076,3786.8,3786.2,0.04549254]
[1717088022922,0.55,3786.7,3786.2,0.04549254]
[1717088023375,0.55,3786.7,3786.0,7.3]
[1717088023716,0.55,3786.7,3786.3,0.0454126]
[1717088023903,0.55,3786.7,3786.0,7.3]
[1717088024106,0.55,3786.7,3786.4,0.04535618]
[1717088024511,0.55,3786.7,3786.5,0.04529976]
[1717088024883,0.55,3786.7,3786.6,0.04524335]
[1717088025216,0.55,3786.7,3786.0,7.3]
[1717088025421,0.55,3786.7,3786.6,0.04524335]
[1717088025625,0.55,3786.7,3786.0,7.3]
[1717088025788,0.55,3786.7,3786.6,0.04524335]
[1717088025983,0.55,3786.7,3786.0,7.3]
[1717088026184,0.55,3786.7,3786.6,0.04524335]
[1717088026533,0.55,3786.7,3786.0,7.3]
[1717088026722,0.55,3786.7,3786.6,0.04524335]
[1717088027312,0.55,3786.7,3786.0,7.3]
[1717088027840,0.55,3786.7,3786.1,0.04552545]
[1717088029608,0.6346752,3786.7,3786.1,0.04552545]
[1717088030106,2.64089,3786.6,3786.1,0.04552545]
[1717088030514,2.7255652,3786.6,3786.1,0.04552545]
[1717088031048,2.64104,3786.4,3786.1,0.04552545]
[1717088031239,0.57095414,3786.3,3786.1,0.04552545]
[1717088031441,0.65562934,3786.3,3786.1,0.04552545]
[1717088031615,0.65562934,3786.3,3785.6,2.64155]
[1717088031814,0.65562934,3786.3,3785.5,7.3]
[1717088031815,0.65562934,3786.3,3786.2,0.04549839]
[1717088032014,2.64123,3786.2,3785.5,7.3]
[1717088032220,2.64139,3785.9,3785.5,7.3]
[1717088032615,2.64151,3785.7,3785.5,7.3]
[1717088033049,1.12108419,3785.6,3785.5,7.3]
[1717088033259,1.12108419,3785.6,3784.8,9.94208]
[1717088034377,0.55,3785.6,3784.8,9.94208]
[1717088034922,2.64168,3785.5,3784.9,2.64560763]
[1717088037521,0.55,3785.6,3784.8,9.94208]
[1717088037721,1.12108728,3785.8,3784.8,9.94208]
[1717088038032,0.57108728,3785.8,3785.1,2.64192]
[1717088038357,0.0846752,3786.2,3785.1,2.64192]
[1717088038562,0.65574636,3786.2,3785.1,2.64192]